Cogmind - Beta 13 @@@ ROGUE MODE // 2024.08.04 @ 19:54:22 Player: YBOUZL Result: Destroyed by Y-54 Guardian with Gatling Laser Performance ------------- Evolutions (3) 1500 Regions Visited (6) 1200 Robots Destroyed (47) 235 Value Destroyed (1613) 1613 Prototype IDs (6) 120 Alien Tech Used (0) 0 Bonus (0) 0 TOTAL SCORE: 4668 Bonus ------- None Cogmind --------- Core Integrity 0/700 Matter 14/300 Energy 108/150 System Corruption 0% Temperature Cool (12) Movement Hovering (180) Ox2 Location -7/Factory Parts ------- > --- POWER (2) -------- Micro Nuclear Core > --- PROPULSION (4) --- Gravmag System > --- UTILITY (3) ------ Large Storage Unit > --- WEAPON (4) ------- (None) > --- INVENTORY (15) --- Energy Filter Kinecellerator Peak State ------------ > --- POWER ------------ Micro Nuclear Core Micro Nuclear Core > --- PROPULSION ------- Improved Carbon-fiber Leg Wheel Flight Unit > --- UTILITY ---------- Large Storage Unit Shield Generator Corruption Screen > --- WEAPON ----------- EM Pulse Cannon Cooled Particle Cannon Flak Gun Improved Light Cannon > --- INVENTORY -------- Light Ion Engine Light Ion Engine Light Nuclear Core Improved Heat Sink Energy Filter Kinecellerator Gatling Laser Heavy Ion Cannon Heavy Assault Rifle High-powered Shotgun Gauss Rifle Flak Gun Missile Launcher [Rating: 39] Favorites ----------- Power Improved Deuterium Engine Engine Improved Deuterium Engine Power Core Micro Nuclear Core Propulsion Flight Unit Treads Armored Treads Leg Aluminum Leg Wheel Wheel Hover Unit Gravmag System Flight Unit Flight Unit Utility Large Storage Unit Device Experimental Sensor Array Storage Large Storage Unit Processor Corruption Screen Weapon Improved Light Cannon Energy Gun Heavy Laser Energy Cannon EM Pulse Cannon Ballistic Gun Light Assault Rifle Ballistic Cannon Improved Light Cannon Launcher Missile Launcher Special Weapon Mining Laser Build | -11 -10 -10 -9 -9 -8 -7 ------- Run | Yrd Mat Min Mat Min Mat Fac Slots Evolved 6 | . . . 2 . 2 2 Power 1 | . . . . . 1 . Propulsion 2 | . . . 1 . . 1 Utility 1 | . . . . . . 1 Weapon 2 | . . . 1 . 1 . Parts Attached 89 | 5 3 6 2 7 41 25 Power 17 | 1 . . . 1 8 7 Engine 11 | 1 . . . 1 6 3 Core 6 | . . . . . 2 4 Reactor . | . . . . . . . Propulsion 25 | 2 . 4 1 5 10 3 Treads 1 | . . . . . 1 . Leg 6 | 2 . . 1 . 2 1 Wheel 6 | . . 2 . 2 2 . Hover 2 | . . . . . . 2 Flight 10 | . . 2 . 3 5 . Utility 12 | . 2 1 . . 6 3 Device 8 | . 1 1 . . 4 2 Storage 2 | . 1 . . . 1 . Processor 2 | . . . . . 1 1 Hackware . | . . . . . . . Protection . | . . . . . . . Artifact . | . . . . . . . Weapon 35 | 2 1 1 1 1 17 12 Energy Gun 14 | 2 1 1 . . 7 3 Energy Cannon 3 | . . . . . 1 2 Ballistic Gun 12 | . . . 1 1 5 5 Ballistic Cannon 2 | . . . . . 2 . Launcher 2 | . . . . . . 2 Special Weapon 2 | . . . . . 2 . Impact Weapon . | . . . . . . . Slashing Weapon . | . . . . . . . Piercing Weapon . | . . . . . . . Special Melee Weapon . | . . . . . . . Unidentified Prototypes 2 | . . 1 . . 1 . Parts Lost 46 | . . 1 . 2 15 28 Power 10 | . . . . 1 2 7 Propulsion 8 | . . . . . 5 3 Utility 5 | . . . . . 1 4 Weapon 23 | . . 1 . 1 7 14 Highest Loss Streak 22 | . . 1 . 1 8 22 To Critical Strikes . | . . . . . . . Average Slot Usage (%) 79 | . 81 98 88 94 78 74 Engine 8 | . 14 14 11 11 10 1 Core 3 | . . . . . 1 10 Treads 1 | . . . . . 2 . Leg 5 | . 28 5 . . 4 2 Wheel 6 | . . 21 22 20 5 5 Flight 7 | . . . . 8 10 5 Device 6 | . 3 14 11 11 5 5 Storage 7 | . 6 14 11 11 6 7 Processor 2 | . . . . . 1 6 Energy Gun 11 | . 28 27 22 19 12 1 Energy Cannon 3 | . . . . . 1 9 Ballistic Gun 4 | . . . 11 12 4 5 Ballistic Cannon 5 | . . . . . 6 5 Special Weapon 2 | . . . . . 4 . Naked Turns . | . . . . . . . Heaviest Build 57 | 9 30 30 30 30 57 55 Greatest Support 26 | 20 20 26 26 26 26 10 Greatest Overweight (x) 15 | . 1 1 1 2 5 15 Average Overweight (x) 1 | . . 1 1 1 1 4 Largest Inventory Capacity 15 | 5 15 15 15 15 15 15 Average Capacity 12 | 5 9 15 15 15 11 15 Most Carried 15 | 5 9 15 14 14 15 15 Average Carried 8 | 2 5 13 13 12 9 6 Final Capacity 15 | 5 15 15 15 15 15 15 Final Carried 15 | 5 9 15 14 13 4 2 Class Distribution -------------------- 38% | Gunner 35% | Mutant 12% | Tank 11% | Skirmisher Dominant Class ---------------- Mutant | -10/Materials Mutant | -10/Mines Mutant | -9/Materials Skirmisher | -9/Mines Gunner | -8/Materials Tank | -7/Factory Resources | -11 -10 -10 -9 -9 -8 -7 ----------- Run | Yrd Mat Min Mat Min Mat Fac Matter Collected 1100 | 221 49 52 . 70 615 93 Remotely . | . . . . . . . Salvage Created 1746 | . 175 47 . 92 914 518 Parts 83 | . 3 7 . 9 41 23 Haulers Intercepted . | . . . . . . . Recyclers Shooed 1 | . . . . . 1 . Parts Field Recycled . | . . . . . . . Retrieved Matter . | . . . . . . . Parts Self-Destructed . | . . . . . . . Prevented . | . . . . . . . Kills | -11 -10 -10 -9 -9 -8 -7 ------- Run | Yrd Mat Min Mat Min Mat Fac Combat Hostiles Destroyed 38 | . 4 3 . 6 16 9 Guns 18 | . 2 3 . 6 6 1 Cannons 11 | . . . . . 9 2 AOE 8 | . 1 . . . 1 6 Classes Destroyed 12 | . 1 1 . . 6 4 Worker 1 | . . . . . 1 . Builder 3 | . . . . . . 3 Recycler 1 | . . . . . . 1 Operator 1 | . . . . . 1 . Watcher 3 | . . . . . 2 1 Swarmer 9 | . . 3 . 6 . . Grunt 16 | . 4 . . . 9 3 Duelist 1 | . . . . . 1 . Sentry 8 | . . . . . 5 3 Specialist 2 | . . . . . . 2 Hunter 1 | . . . . . 1 . Heavy 1 | . . . . . . 1 Best Kill Streak 7 | . 2 3 . 3 5 7 Combat Bots Only 6 | . 2 3 . 3 4 6 Max Kills in Single Turn 3 | . 1 2 . 1 2 3 Gunslinging . | . . . . . . . Exploded 3 | . 1 . . . 1 3 Melee . | . . . . . . . Uniques/NPCs Destroyed . | . . . . . . . Combat | -11 -10 -10 -9 -9 -8 -7 -------- Run | Yrd Mat Min Mat Min Mat Fac Hostile Shots Fired 579 | . 39 15 . 40 109 376 Missed 203 | . 11 5 . 11 33 143 Damage Taken 5542 | . 423 74 . 249 1948 2848 Core 1435 | . 153 14 . 83 474 711 Absorbed by Shields 91 | . . . . . . 91 Core Remaining (%) 56 | 100 . 33 . 79 13 . Volleys Fired 108 | . 18 4 . 13 47 26 Largest 4 | . 2 2 . 3 4 4 Hottest 257 | . 90 90 . 110 257 211 Shots Fired 302 | . 36 8 . 39 137 82 Gun 199 | . 36 8 . 39 80 36 Cannon 89 | . . . . . 52 37 Launcher 9 | . . . . . . 9 Special 5 | . . . . . 5 . Kinetic 116 | . . . . 17 65 34 Thermal 104 | . 13 7 . 22 44 18 Explosive 9 | . . . . . . 9 Electromagnetic 73 | . 23 1 . . 28 21 Robot Hit Streak 9 | . 5 1 . 5 7 9 Robot Miss Streak 5 | . 3 3 . 5 4 4 Penetration Max . | . . . . . . . Secondary Targets 1 | . 1 . . . . . Max Gunslinging Chain 1 | . 1 . . . . . Shots Hit Robots 157 | . 21 2 . 16 70 48 Core Hits 86 | . 6 3 . 6 36 35 Critical Kills 1 | . . . . . . 1 Critical Parts Destroyed . | . . . . . . . Critical Strikes 3 | . . . . . 2 1 Burn 1 | . . . . . 1 . Destroy 1 | . . . . . . 1 Blast 1 | . . . . . 1 . Melee Attacks . | . . . . . . . Impact . | . . . . . . . Slashing . | . . . . . . . Piercing . | . . . . . . . Sneak Attacks . | . . . . . . . Combat Hostiles . | . . . . . . . Follow-up Attacks . | . . . . . . . Damage Inflicted 3443 | . 311 37 . 191 1380 1524 Guns 1645 | . 277 37 . 171 699 461 Cannons 1042 | . . . . . 622 420 Explosions 724 | . 34 . . . 47 643 Melee . | . . . . . . . Ramming 32 | . . . . 20 12 . Kinetic 973 | . . . . 91 524 358 Thermal 863 | . 85 37 . 80 376 285 Explosive 643 | . . . . . . 643 Electromagnetic 932 | . 226 . . . 468 238 Impact . | . . . . . . . Slashing . | . . . . . . . Piercing . | . . . . . . . Highest Corruption 16 | . . . . . 16 . Average Corruption 6 | . . . . . 6 . Corruption Purged . | . . . . . . . Corruption Blocked 3 | . . . . . . 3 Effects 30 | . . . . . 30 . Message Errors 3 | . . . . . 3 . Matter Fused 8 | . . . . . 8 . Heat Flow Errors 6 | . . . . . 6 . Energy Discharges 2 | . . . . . 2 . Data Loss (minor) 3 | . . . . . 3 . Misfires 4 | . . . . . 4 . Alerts 2 | . . . . . 2 . Weapon Failures 2 | . . . . . 2 . Overload Shots . | . . . . . . . Overflow Damage 19 | . . . . . . 19 Projectiles . | . . . . . . . Explosions 19 | . . . . . . 19 Melee . | . . . . . . . Knockbacks 3 | . . . . . 2 1 Impact . | . . . . . . . Kinetic 3 | . . . . . 2 1 Secondary . | . . . . . . . Self-Inflicted Damage 139 | . 9 . . 10 4 116 Shots 5 | . 1 . . . . 4 Rammed 2 | . . . . 1 1 . Targets Rammed 3 | . . . . 1 2 . Kicked 1 | . . . . . 1 . Crushed . | . . . . . . . Highest Temperature 778 | . 268 . . 295 778 319 Average Temperature 162 | . 133 . . 126 201 107 Received Heat Transfer 1415 | . 183 . . . 576 656 Effects 33 | . . . . . 30 3 Shutdowns 8 | . . . . . 8 . Energy Bleed 1 | . . . . . 1 . Interference 7 | . . . . . 4 3 Short Circuit 6 | . . . . . 6 . Damage (minor) 6 | . . . . . 6 . Damage (major) 2 | . . . . . 2 . Damage (core) 3 | . . . . . 3 . Siege Activations . | . . . . . . . Robots Corrupted 1 | . 1 . . . . . Combat Hostiles 1 | . 1 . . . . . Parts Fried 5 | . 3 . . . 2 . Impact Corruptions . | . . . . . . . Robots Melted . | . . . . . . . Combat Hostiles . | . . . . . . . Parts Melted 2 | . . . . . . 2 Heat Transferred 1709 | . 148 87 . 199 778 497 Parts Sabotaged . | . . . . . . . Parts Stolen . | . . . . . . . Parts Stripped . | . . . . . . . Power Chain Reactions 2 | . 1 . . . 1 . Alert | -11 -10 -10 -9 -9 -8 -7 ------- Run | Yrd Mat Min Mat Min Mat Fac Peak Influence 340 | . 145 116 44 153 340 264 Initial 154 | . . 56 44 16 59 154 Average 105 | . 78 113 44 91 87 160 Maximum Alert Level 1 | . . . . . 1 1 Low Security (%) 84 | 100 100 100 100 100 81 74 Level 1 15 | . . . . . 18 25 Level 2 . | . . . . . . . Level 3 . | . . . . . . . Level 4 . | . . . . . . . Level 5 . | . . . . . . . High Security . | . . . . . . . Max Security . | . . . . . . . Squads Dispatched 11 | . 1 . . . 3 7 Investigation 2 | . 1 . . . 1 . Extermination 1 | . . . . . . 1 Reinforcement 5 | . . . . . 2 3 Assault . | . . . . . . . Garrison 3 | . . . . . . 3 Intercept . | . . . . . . . Searches Triggered . | . . . . . . . Construction Impeded 1 | . . . . . . 1 Haulers Reinforced . | . . . . . . . Active Scanning Responses . | . . . . . . . Cargo Convoy Interrupts . | . . . . . . . Stealth | -11 -10 -10 -9 -9 -8 -7 --------- Run | Yrd Mat Min Mat Min Mat Fac Distress Signals 2 | . . . . . 2 . Communications Jammed . | . . . . . . . Distress Signals . | . . . . . . . Times Spotted 63 | . 6 3 . 6 27 21 Peak Tracking Total 7 | . 4 3 . 3 4 7 Tactical Retreats 6 | . . . . . 2 4 Traps | -11 -10 -10 -9 -9 -8 -7 ------- Run | Yrd Mat Min Mat Min Mat Fac Traps Triggered . | . . . . . . . Indirectly . | . . . . . . . Trap Hack Attempts . | . . . . . . . Triggered . | . . . . . . . Disarmed . | . . . . . . . Reprogrammed . | . . . . . . . Reused . | . . . . . . . Traps Extracted . | . . . . . . . Installed . | . . . . . . . Triggered 1 | . 1 . . . . . Machines | -11 -10 -10 -9 -9 -8 -7 ---------- Run | Yrd Mat Min Mat Min Mat Fac Machines Disabled 1 | . . . . . . 1 Max in Single Turn 1 | . . . . . . 1 Garrison Access 1 | . . . . . 1 . Machines Repaired . | . . . . . . . Machines Dismantled . | . . . . . . . Machines Sabotaged . | . . . . . . . Overloaded Fab Kills . | . . . . . . . Hacking | -11 -10 -10 -9 -9 -8 -7 --------- Run | Yrd Mat Min Mat Min Mat Fac Machines Accessed 8 | . 2 . . 1 4 1 Terminals 5 | . 1 . . 1 3 . Fabricators 1 | . . . . . . 1 Repair Stations . | . . . . . . . Recycling Units 1 | . 1 . . . . . Scanalyzers . | . . . . . . . Garrison Access 1 | . . . . . 1 . Total Hacks 23 | . 4 . . 2 16 1 Successful 12 | . 2 . . 2 7 1 Failed 11 | . 2 . . . 9 . Catastrophic 1 | . . . . . 1 . Database Lockouts . | . . . . . . . Manual . | . . . . . . . Terminals 18 | . 3 . . 2 13 . Fabricators 1 | . . . . . . 1 Repair Stations . | . . . . . . . Recycling Units 1 | . 1 . . . . . Scanalyzers . | . . . . . . . Garrison Access 3 | . . . . . 3 . Terminal Hacks 9 | . 1 . . 2 6 . Record 3 | . . . . 2 1 . Prototype ID Bank 2 | . 1 . . . 1 . Dispatch Records 1 | . . . . . 1 . Maintenance Status 1 | . . . . . 1 . Patrol Status 1 | . . . . . 1 . Zone Layout 1 | . . . . . 1 . Fabricator Hacks 1 | . . . . . . 1 Network Status 1 | . . . . . . 1 Repair Station Hacks . | . . . . . . . Recycling Unit Hacks 1 | . 1 . . . . . Process 1 | . 1 . . . . . Scanalyzer . | . . . . . . . Garrison Access Hacks 1 | . . . . . 1 . Seal Access 1 | . . . . . 1 . Unauthorized Hacks . | . . . . . . . Terminals . | . . . . . . . Fabricators . | . . . . . . . Repair Stations . | . . . . . . . Recycling Units . | . . . . . . . Scanalyzers . | . . . . . . . Garrison Access . | . . . . . . . Data Cores Recovered . | . . . . . . . Used . | . . . . . . . Hacking Detections 8 | . 2 . . 1 4 1 Full Trace Events 3 | . . . . . 3 . Feedback Events . | . . . . . . . Feedback Blocked . | . . . . . . . Robot Schematics Acquired . | . . . . . . . Robots Built . | . . . . . . . Authchips . | . . . . . . . Time . | . . . . . . . Total Robot Build Rating . | . . . . . . . Part Schematics Acquired . | . . . . . . . Parts Built . | . . . . . . . Authchips . | . . . . . . . Time . | . . . . . . . Total Part Build Rating . | . . . . . . . Parts Repaired . | . . . . . . . Time . | . . . . . . . Parts Recycled . | . . . . . . . Recycled Matter . | . . . . . . . Retrieved Matter . | . . . . . . . Retrieved Components . | . . . . . . . Parts Scanalyzed . | . . . . . . . Part Schematics Acquired . | . . . . . . . Parts Damaged . | . . . . . . . Bothacking | -11 -10 -10 -9 -9 -8 -7 ------------ Run | Yrd Mat Min Mat Min Mat Fac Used RIF Installer . | . . . . . . . Robots Hacked . | . . . . . . . Non-combat . | . . . . . . . Combat . | . . . . . . . Robot Hacks Applied . | . . . . . . . Relay Couplers Released . | . . . . . . . Fabnet Peak Effective % . | . . . . . . . Robots Rewired . | . . . . . . . Allies Hacked . | . . . . . . . Hacks Repelled . | . . . . . . . Allies | -11 -10 -10 -9 -9 -8 -7 -------- Run | Yrd Mat Min Mat Min Mat Fac Total Allies . | . . . . . . . Largest Group . | . . . . . . . Highest-Rated Group . | . . . . . . . Highest-Rated Ally . | . . . . . . . Total Orders . | . . . . . . . Ally Attacks . | . . . . . . . Total Damage . | . . . . . . . Kills . | . . . . . . . Allies Corrupted . | . . . . . . . Allies Melted . | . . . . . . . Intel | -11 -10 -10 -9 -9 -8 -7 ------- Run | Yrd Mat Min Mat Min Mat Fac Robot Analysis Total . | . . . . . . . Derelict Logs Recovered 1 | . . 1 . . . . Drone Launches . | . . . . . . . Drone Recoveries . | . . . . . . . Exploration | -11 -10 -10 -9 -9 -8 -7 ------------- Run | Yrd Mat Min Mat Min Mat Fac Turns Passed 3076 | 120 244 204 18 139 1513 838 Spaces Moved 1573 | 93 117 155 15 82 706 405 Core 16 | 8 . . . . . 8 Treads 145 | . . . . . 145 . Legs 273 | 85 117 12 . . 59 . Wheels 808 | . . 143 15 81 231 338 Hover 59 | . . . . . . 59 Flight 272 | . . . . 1 271 . Fastest Speed 50 | 50 120 105 105 105 105 125 Average Speed 146 | 113 143 111 105 106 151 168 Slowest Speed 800 | 120 190 190 105 194 330 800 Overloaded Moves . | . . . . . . . Propulsion Burnouts . | . . . . . . . Robots Hopped . | . . . . . . . Cave-ins Triggered 2 | . . . . . 2 . Exploration Rate (%) 21 | 5 25 36 3 31 37 12 Regions Visited 6 Branch Regions 2 Pre-discovered Areas . | . . . . . . . Known Exits Taken 1 | . . . 1 . . . Unknown Exits Taken 5 | 1 1 1 . 1 1 . Scrap Searched 2 | . . 1 . 1 . . Spaces Dug 2 | . . . . . 2 . Terrain Destroyed 64 | . . . . . 10 54 Melee . | . . . . . . . Projectile 9 | . . . . . 6 3 AOE 55 | . . . . . 4 51 Terrain Rammed . | . . . . . . . Walls Destroyed . | . . . . . . . Machines Disabled . | . . . . . . . Actions | -11 -10 -10 -9 -9 -8 -7 --------- Run | Yrd Mat Min Mat Min Mat Fac Total 2121 | 107 158 181 17 108 1048 502 Wait 242 | . 11 . . . 208 23 Move 1567 | 92 116 154 14 81 705 405 Hop . | . . . . . . . Pick Up 71 | 10 8 11 . 4 16 22 Fast Attach 12 | . . . . . 12 . Attach 69 | 5 3 6 2 5 23 25 Detach 7 | . . 2 1 . 3 1 Swap 8 | . . . . 2 6 . Drop 34 | . 2 4 . 2 26 . Fire 108 | . 18 4 . 13 47 26 Melee . | . . . . . . . Ram 2 | . . . . 1 1 . Kick 1 | . . . . . 1 . Crush . | . . . . . . . Escape Stasis . | . . . . . . . Rewire . | . . . . . . . Trap . | . . . . . . . Miscellaneous . | . . . . . . . Route ------- -11/Scrapyard -10/Materials -10/Mines -9/Materials (discovered 2 exits: *Min x2) -9/Mines -8/Materials -7/Factory History --------- Turn | Location | Event 5 | -11/Scrapyard | Discovered new exit (range 15) 121 | -11/Scrapyard | Entered Materials 246 | -10/Materials | Discovered new exit (range 15) 279 | -10/Materials | Core integrity fell below 50% 325 | -10/Materials | Build established: Mutant 365 | -10/Materials | Entered Mines 445 | -10/Mines | Found a damaged Exp. Sensor Array with a note attached 447 | -10/Mines | Found Prototype Device 449 | -10/Mines | Identified Exp. Sensor Array 548 | -10/Mines | Discovered new exit (range 15) 569 | -10/Mines | Entered Materials 569 | -9/Materials | Evolved 2 slots: Propulsion x1, Weapon x1 570 | -9/Materials | Identified exit to Mines 587 | -9/Materials | Entered Mines 694 | -9/Mines | Discovered new exit (range 10) 726 | -9/Mines | Entered Materials 726 | -8/Materials | Evolved 2 slots: Power x1, Weapon x1 1101 | -8/Materials | Build established: Gunner 1192 | -8/Materials | Core integrity fell below 50% 1199 | -8/Materials | Crushed by falling debris 1237 | -8/Materials | Lost 8 parts (1p2n1u4w) 1960 | -8/Materials | Build established: Mutant 2111 | -8/Materials | Core integrity fell below 20% 2213 | -8/Materials | Crushed by falling debris 2213 | -8/Materials | System corruption reached 10% 2236 | -8/Materials | Discovered new exit (range 3) 2239 | -8/Materials | Entered Factory 2239 | -7/Factory | Evolved 2 slots: Propulsion x1, Utility x1 2244 | -7/Factory | Lost 3 parts (1p1n1w) 2427 | -7/Factory | Build established: Gunner 2758 | -7/Factory | Build established: Tank 2859 | -7/Factory | Garrison activated, responded to threat 2936 | -7/Factory | Core integrity fell below 50% 3012 | -7/Factory | Lost 22 parts (5p3n2u12w) 3072 | -7/Factory | Core integrity fell below 20% 3077 | -7/Factory | Destroyed by Y-54 Guardian with Gatling Laser Last Messages --------------- U-05 Engineer builds a Door. Acquired Lgt. Ion Engine. Acquired 18 matter. U-05 Engineer builds a Wall. Gravmag System destroyed. Lgt. Ion Engine destroyed. G-47 Trooper destroyed. K-01 Serf collects debris. ALERT: Rogue bot located, Programmers report to Factory Zone 3M. K-01 Serf cleans the Subcomponent Replicator. Lgt. Ion Engine destroyed. Corruption Screen intercepted 1% system corruption. Gatling Laser destroyed. Corruption Screen intercepted 1% system corruption. Acquired Mic. Nuclear Core. Corruption Screen destroyed. Map ----- +----------------------------------------------------+ | ???????????+ | | ??????????????##########+################# ### | | ??????????????????# #?????????# #?? | | ??????????????????# #?????????# #?? | | ??????????????????# #?????????# #?? | | ??????????????????# #?????????# ### | | ??????????????????# #?????????# # | | ??????????????????###+#############??????# # | | ????????????????????# #?# #??????# # | | ????????????######### #?# ######## # | | ?????? ### # %# | | ?????????????######## + # # | | ????????????????????# ### # """"" + | | ???????????#??????### ### """ """ + """"" # | | ???????????# ?? ?# # """ """ # ! """ # | | ???????????# """?# # """ """ # ### | | ???????????# """?+ ########### /!!#?# | | ???????????# """ # #??# ^ /! #?# | | ????????????? # #??# u !! ##### | | ??????????????? ### ###??# kp | | ????????????##### # ##???# Y #### | | ????????????# # ######^^ gY #??? | | ????????????# %+ g#### ####### #??? | | ????????????# # #??# #?????# #??? | | ???????########## # / ""#??# #?????# #??? | | ???????# ! # /@ ""#??# #?????# #??? | | ???????# """"""" # ** ""####+#######/#??? | | ???????# """"""" # T# #??? | | ???????# """"""" # ""# """ #?## | | ???????# """"""" # ""# "Y #### | | ???????# # " " " ""# """ + | | ???????# # " " " # """" #### | | ???????# !] # " " " # """" #### | | ???????# ] + " " " + """" ## | | ???????# # " " " # """" ##"" | | ???????# # " " " # """" ##"" | | ???????# # " " " # """" ##"" | | ???????########+##### " " " # """" ## | | ???????????# " " " # ## | | ???????????# ?###########+##### | | ???????????# ??????????????????? | | ???????????# ??????????????????? | | ???????????# ??????????????????? | | ?????????######+#############+???????????????????? | | ?????????# #??????????????????????????? | | ?????????# #??????????????????????????? | | ?????????# #??????????????????????????? | | ?????????# ! #??????????????????????????? | | ?????????# #??????????????????????????? | | ?????????# #??????????????????????????? | +----------------------------------------------------+ Best States ------------- Heat Dissipation 48 Energy Generation 27 Energy Capacity 480 Matter Stores 300 Matter Capacity 300 Sight Range 16 Robot Scan Range 20 Terrain Scan Density 10 Corruption Block 8 Evasion (%) 55 Recoil Reduction 1 Item Schematics ----------------- None Robot Schematics ------------------ None Fabricated ------------ Nothing Alien Tech Used ----------------- None Achievements -------------- None Challenges ------------ None Game ------ Seed LayeredNeutronImmobilizer Manual? 0 Play Time 00:42:58 Cumulative 9.4 hours Start 2024.08.04 @ 19:13:48 End 2024.08.04 @ 19:54:22 Sessions 1 Manual Loads 0 Difficulty Rogue Special Mode None Game No. 24 Rogue 24 Adventurer 0 Explorer 0 Win Type - Total 0 Types 0/0/0/0/0/0/0/0/0 Lore% 14 Gallery% 17 Achievement% 13 Wizard Run 0 Options --------- Layout 1 ASCII 0 Keyboard 0 Movement Mouse Keybinds 0 Fullscreen 1 Font 24/Smallcaps Map View 50x35 Zoom Use 0% Tactical HUD 0 Map Filters NONE Filters NONE Steam 1 RUN: db208bf8-b044-4fb3-8b2b-616f952e5d8c